Cogmind - Beta 10.2 @@@ ROGUE MODE // 2021.07.02 @ 14:06:05 Player: ExAliquo Result: Destroyed by H-88 Terminator with KE Penetrator Performance ------------- Evolutions (9) 4500 Regions Visited (26) 5200 Robots Destroyed (243) 1215 Value Destroyed (15405) 15405 Prototype IDs (37) 740 Alien Tech Used (0) 0 Bonus (12548) 12548 TOTAL SCORE: 39608 Bonus ------- High Alert Combat Kills 494 Follower Combat Kills 6217 Entered Garrisons 2000 Used RIF Installer 5000 Aligned with FarCom 300 Friendly Fire -1463 Cogmind --------- Core Integrity 0/1600 Matter 266/300 Energy 142/350 System Corruption 26% Temperature Cool (0) Movement Core (350) Ox6 Location -1/Command Parts ------- > --- POWER (2) -------- Quantum Reactor > --- PROPULSION (4) --- (None) > --- UTILITY (14) ----- Relay Coupler [Grunt] (6) Relay Coupler [Sentry] (1) > --- WEAPON (5) ------- (None) > --- INVENTORY (4) ---- (None) Peak State ------------ > --- POWER ------------ Quantum Reactor Quantum Reactor > --- PROPULSION ------- Biometal Heavy Treads Biometal Heavy Treads > --- UTILITY ---------- Large Storage Unit Large Storage Unit Layered Medium Armor Plating Antimissile System Relay Coupler [Swarmer] Relay Coupler [Swarmer] Relay Coupler [Grunt] Relay Coupler [Brawler] Relay Coupler [Duelist] Relay Coupler [Sentry] Relay Coupler [Hunter] Relay Coupler [Behemoth] > --- WEAPON ----------- KE Penetrator Railgun Helical Railgun Helical Railgun Improved Remote Datajack > --- INVENTORY -------- Quantum Reactor Advanced Heavy Treads Relay Coupler [NC] Relay Coupler [Swarmer] Relay Coupler [Grunt] Relay Coupler [Grunt] Relay Coupler [Grunt] Relay Coupler [Duelist] Relay Coupler [Hunter] Long-range Tractor Beam KE Penetrator Fusion Bomb Launcher Advanced Remote Datajack Plasma Lance Enhanced Force Lance [Rating: 144] Favorites ----------- Power Improved Deuterium Engine Engine Improved Deuterium Engine Power Core Reinforced Fission Core Reactor Quantum Reactor Propulsion Potential Leg Treads Biometal Heavy Treads Leg Potential Leg Wheel Compact Wheel Hover Unit Aerolev Unit Flight Unit Impulse Thruster Utility Large Storage Unit Device Long-range Sensor Array Storage Large Storage Unit Processor Advanced Signal Interpreter Hackware Relay Coupler [Sentry] Protection Layered Medium Armor Plating Weapon Enhanced Autogun Energy Gun Small Laser Ballistic Gun Enhanced Autogun Ballistic Cannon Improved Light Cannon Launcher Proton Missile Launcher Special Weapon Improved Remote Datajack Impact Weapon Hammer Slashing Weapon Axe Piercing Weapon Plasma Lance Build | -11 -10 -10 -10 -9 -8 -8 -8 -8 -7 -7 -7 -7 -6 -6 -6 -6 -5 -5 -4 -4 -3 -3 -2 -2 -1 -1 ------- Run | Scr Mat Min Exi Min Mat Gar Mat Gar Fac Gar Fac Gar Fac Gar Fac Gar Fac Gar Fac Gar Res Gar Res Gar Acc Com Slots Evolved 18 | . . . . . 4 . . . 2 . . . 2 . . . 2 . 2 . 2 . 2 . 2 . Power 1 | . . . . . . . . . . . . . . . . . . . . . 1 . . . . . Propulsion 2 | . . . . . 1 . . . . . . . 1 . . . . . . . . . . . . . Utility 12 | . . . . . 3 . . . 1 . . . 1 . . . 2 . . . 1 . 2 . 2 . Weapon 3 | . . . . . . . . . 1 . . . . . . . . . 2 . . . . . . . Parts Attached 341 | . 13 . 3 . 16 4 17 1 24 8 1 19 9 25 . 19 30 21 19 14 10 14 17 13 8 36 Power 31 | . . . . . 2 . . . 2 1 . 1 . 1 . 1 2 1 1 4 3 2 3 . 1 6 Engine 10 | . . . . . 2 . . . 2 1 . . . 1 . 1 1 . . . . . . . . 2 Core 6 | . . . . . . . . . . . . 1 . . . . 1 1 . 3 . . . . . . Reactor 15 | . . . . . . . . . . . . . . . . . . . 1 1 3 2 3 . 1 4 Propulsion 34 | . 7 . 2 . 3 . 1 . 3 . . . 1 1 . 3 4 . 4 . . . . . 2 3 Treads 21 | . 4 . . . 2 . 1 . 2 . . . . 1 . . 3 . 4 . . . . . 2 2 Leg 7 | . . . 2 . . . . . . . . . 1 . . 3 1 . . . . . . . . . Wheel 4 | . 3 . . . 1 . . . . . . . . . . . . . . . . . . . . . Hover 1 | . . . . . . . . . 1 . . . . . . . . . . . . . . . . . Flight 1 | . . . . . . . . . . . . . . . . . . . . . . . . . . 1 Utility 147 | . 2 . 1 . 5 . 8 1 12 2 1 7 6 9 . 10 12 7 10 5 7 9 5 9 3 16 Device 34 | . . . . . 2 . 3 1 5 . 1 2 4 . . . 2 1 3 . 4 . 1 1 1 3 Storage 5 | . 2 . 1 . . . . . . 1 . . . . . . 1 . . . . . . . . . Processor 5 | . . . . . . . . . 1 . . . 1 . . . 1 . . . . . . . . 2 Hackware 60 | . . . . . . . . . 3 . . 4 . 5 . 6 3 5 4 3 2 6 2 8 2 7 Protection 43 | . . . . . 3 . 5 . 3 1 . 1 1 4 . 4 5 1 3 2 1 3 2 . . 4 Artifact . | . . . . . . . . . . . . . . . . . . . . . . . . . . . Weapon 129 | . 4 . . . 6 4 8 . 7 5 . 11 2 14 . 5 12 13 4 5 . 3 9 4 2 11 Energy Gun 3 | . . . . . . . . . . . . . . . . . . 3 . . . . . . . . Energy Cannon . | . . . . . . . . . . . . . . . . . . . . . . . . . . . Ballistic Gun 65 | . 1 . . . . . 7 . 4 3 . 5 2 7 . 2 8 6 1 4 . 2 6 2 1 4 Ballistic Cannon 7 | . . . . . 4 2 . . . . . . . . . . . . . . . . . . . 1 Launcher 11 | . . . . . . 2 . . 1 2 . 3 . 1 . 1 . . . . . . . . . 1 Special Weapon 29 | . . . . . . . . . 2 . . 3 . 6 . 2 4 4 1 1 . . 2 1 . 3 Impact Weapon 5 | . 3 . . . 2 . . . . . . . . . . . . . . . . . . . . . Slashing Weapon 1 | . . . . . . . 1 . . . . . . . . . . . . . . . . . . . Piercing Weapon 8 | . . . . . . . . . . . . . . . . . . . 2 . . 1 1 1 1 2 Special Melee Weapon . | . . . . . . . . . . . . . . . . . . . . . . . . . . . Unidentified Prototypes 6 | . . . . . . . 2 . 1 . . . . . . . . . . . 2 . 1 . . . Parts Lost 73 | . 3 . . . . . 1 1 1 . . 4 . 1 . 1 5 2 7 2 1 . 2 . 3 39 Power 9 | . 1 . . . . . . . . . . 1 . . . . . . . 1 1 . . . 1 4 Propulsion 7 | . 2 . . . . . . . . . . . . 1 . . . . 1 . . . . . . 3 Utility 35 | . . . . . . . 1 1 1 . . 1 . . . 1 2 1 4 . . . 1 . 1 21 Weapon 22 | . . . . . . . . . . . . 2 . . . . 3 1 2 1 . . 1 . 1 11 Highest Loss Streak 20 | . 2 . . . . . 1 1 1 . . 3 . 1 . 1 2 1 3 1 1 . 2 . 3 20 Average Slot Usage (%) 87 | . 92 85 77 71 70 90 89 90 91 92 92 88 89 88 86 89 85 87 85 85 84 90 90 90 89 81 Engine 3 | . 8 . . . 4 9 9 9 6 7 7 4 . 3 6 6 3 . . . . . . . . . Reactor 2 | . . . . . . . . . . . . . . . . . . . . 4 4 9 8 8 7 6 Treads 8 | . 11 14 7 . 9 9 9 9 6 7 7 7 6 12 13 5 8 11 9 10 9 9 8 8 8 6 Leg 7 | . . . 12 28 18 18 18 18 15 15 15 15 19 11 6 17 4 . . . . . . . . . Device 3 | . . . . . 5 18 10 9 8 . 7 5 10 . . . 1 1 4 . 4 . . 2 2 2 Storage 10 | . 27 28 20 14 9 9 9 9 7 8 15 15 13 13 13 13 14 11 10 10 9 9 8 8 8 7 Processor 4 | . . . . . . . . . 6 7 7 4 2 6 6 6 7 11 8 5 4 4 4 1 . . Hackware 15 | . . . . . . . . . 1 13 7 3 6 13 13 13 19 20 20 24 26 27 29 33 42 38 Protection 6 | . . . . . 6 9 15 18 12 7 . 6 3 3 6 4 2 5 . 5 . 4 7 4 1 3 Ballistic Gun 13 | . 4 . . . . . 17 18 20 22 23 15 16 16 20 14 13 14 12 11 14 14 14 14 14 13 Special Weapon 2 | . . . . . . . . . 2 . . 2 . 2 . 4 2 1 4 4 4 4 3 4 2 2 Impact Weapon 1 | . 18 28 28 28 3 . . . . . . . . . . . . . . . . . . . . . Piercing Weapon 1 | . . . . . . . . . . . . . . . . . . . 6 6 4 4 2 2 2 . Naked Turns . | . . . . . . . . . . . . . . . . . . . . . . . . . . . Heaviest Build 115 | 9 39 36 36 9 38 35 46 46 67 47 42 55 58 64 63 66 69 72 80 74 92 103 115 113 109 110 Greatest Support 150 | 20 40 16 60 60 60 60 60 60 60 60 60 60 60 76 30 75 150 150 150 150 150 150 150 150 150 145 Greatest Overweight (x) 17 | . 2 2 2 . . . . . 1 . . . . 2 2 2 . . 1 . 17 . . . . 6 Average Overweight (x) . | . 1 2 . . . . . . . . . . . . 2 . . . . . . . . . . . Largest Inventory Capacity 36 | 6 16 16 24 24 24 24 24 24 24 30 30 30 30 30 30 30 36 16 16 16 16 16 16 16 16 16 Average Capacity 21 | 6 15 16 20 24 24 24 24 24 24 25 30 30 30 30 30 30 28 16 16 16 16 16 16 16 16 14 Most Carried 36 | 6 16 16 17 17 24 24 24 24 24 27 27 30 30 30 30 30 36 16 16 16 16 16 16 16 15 16 Average Carried 20 | 6 12 15 15 17 18 23 23 23 23 24 27 28 29 29 30 29 27 15 13 15 15 15 15 14 12 12 Final Capacity 30 | 6 16 16 24 24 24 24 24 24 24 30 30 30 30 30 30 30 16 16 16 16 16 16 16 16 16 4 Final Carried 30 | 6 16 16 17 17 24 24 24 23 24 27 27 30 30 30 30 30 15 16 16 16 16 16 15 16 13 . Class Distribution -------------------- 45% | Botlord-Mutant 21% | Hauler-Mutant 13% | Botlord-Tank 5% | Mutant 5% | Hauler-Skirmisher 3% | Hauler-Tank Dominant Class ---------------- Mutant | -10/Materials Mutant | -10/Mines Hauler-Mutant | -10/Exiles Hauler-Mutant | -9/Mines Hauler-Mutant | -8/Materials Hauler-Mutant | -8/Garrison Hauler-Mutant | -8/Materials Hauler-Mutant | -8/Garrison Hauler-Skirmisher | -7/Factory Hauler-Tank | -7/Garrison Bothacker-Skirmisher | -7/Factory Bothacker-Mutant | -7/Garrison Botlord-Tank | -6/Factory Botlord-Mutant | -6/Garrison Botlord-Tank | -6/Factory Botlord-Mutant | -6/Garrison Botlord-Mutant | -5/Factory Botlord-Tank | -5/Garrison Botlord-Mutant | -4/Factory Botlord-Mutant | -4/Garrison Botlord-Mutant | -3/Research Botlord-Mutant | -3/Garrison Botlord-Mutant | -2/Research Botlord-Mutant | -2/Garrison Botlord-Mutant | -1/Access Botlord-Tank | -1/Command Resources | -11 -10 -10 -10 -9 -8 -8 -8 -8 -7 -7 -7 -7 -6 -6 -6 -6 -5 -5 -4 -4 -3 -3 -2 -2 -1 -1 ----------- Run | Scr Mat Min Exi Min Mat Gar Mat Gar Fac Gar Fac Gar Fac Gar Fac Gar Fac Gar Fac Gar Res Gar Res Gar Acc Com Matter Collected 10730 | 207 327 10 30 20 260 164 774 254 831 548 . 422 . 799 . 485 1192 784 523 490 153 344 554 484 278 797 Remotely 585 | . . . . . 170 164 216 . . . . . . . . . . . . . . . . . . 35 Salvage Created 12233 | 97 545 . . . 148 174 1336 423 1439 591 . 256 . 539 . 184 1832 771 1117 324 . 586 259 153 205 1254 Parts 720 | 4 24 . . . 6 11 96 25 90 35 . 15 . 28 . 6 115 44 94 11 . 32 20 6 8 50 Haulers Intercepted 8 | . 1 . . . 1 . 5 . . . . . . . . . 1 . . . . . . . . . Recyclers Shooed 3 | . . . . . . . . . 1 . . . . . . . 1 . . . . . . . . 1 Parts Field Recycled . | . . . . . . . . . . . . . . . . . . . . . . . . . . . Retrieved Matter . | . . . . . . . . . . . . . . . . . . . . . . . . . . . Parts Self-Destructed . | . . . . . . . . . . . . . . . . . . . . . . . . . . . Prevented . | . . . . . . . . . . . . . . . . . . . . . . . . . . . Kills | -11 -10 -10 -10 -9 -8 -8 -8 -8 -7 -7 -7 -7 -6 -6 -6 -6 -5 -5 -4 -4 -3 -3 -2 -2 -1 -1 ------- Run | Scr Mat Min Exi Min Mat Gar Mat Gar Fac Gar Fac Gar Fac Gar Fac Gar Fac Gar Fac Gar Res Gar Res Gar Acc Com Combat Hostiles Destroyed 185 | . 13 . . . 3 10 25 12 21 12 . 7 . 10 . 4 22 10 14 5 . 5 3 1 2 6 Melee 20 | . 3 . . . . . . . . . . . . . . . . . 6 5 . 4 . 1 . 1 Guns 131 | . 6 . . . . . 25 12 19 8 . 3 . 7 . 3 20 10 8 . . 1 3 . 2 4 Cannons 6 | . . . . . 3 3 . . . . . . . . . . . . . . . . . . . . AOE 23 | . . . . . . 7 . . 2 4 . 4 . 3 . 1 2 . . . . . . . . . Classes Destroyed 17 | 2 7 . . . 1 . 1 1 1 2 . . . . . . 1 . . . . 1 . . . . Worker 15 | . 1 . . . . . . . 5 . . . . . . . 3 . 2 . . . 3 . 1 . Builder 5 | . 2 . . . . . . . 1 . . . . . . . 2 . . . . . . . . . Tunneler 2 | 1 . . . . . . . . . . . . . . . . 1 . . . . . . . . . Hauler 8 | . 1 . . . 1 . 5 . . . . . . . . . 1 . . . . . . . . . Recycler 7 | 1 1 . . . . . . . 2 . . . . . . . 2 . 1 . . . . . . . Operator 4 | . 1 . . . . . 1 . 2 . . . . . . . . . . . . . . . . . Watcher 11 | . 1 . . . . . 3 . 2 . . . . . . . . . 4 . . . . . 1 . Swarmer 50 | . 7 . . . . 4 9 6 6 5 . 4 . 5 . 2 1 . . . . 1 . . . . Saboteur 1 | . . . . . . . . . . . . . . . . . . . . . . 1 . . . . Grunt 58 | . 6 . . . 1 5 6 4 4 . . 1 . 3 . 2 9 9 1 4 . 1 . 1 . 1 Brawler 5 | . . . . . . . . 1 2 1 . . . . . . . 1 . . . . . . . . Duelist 4 | . . . . . . . . . . 1 . . . . . . . 1 . 1 . . . 1 . . Sentry 24 | . . . . . 2 1 9 1 4 3 . 1 . . . . 1 . . . . 1 1 . . . Demolisher 1 | . . . . . . . . . . . . . . . . . 1 . . . . . . . . . Specialist 2 | . . . . . . . . . . 1 . . . 1 . . . . . . . . . . . . Hunter 9 | . . . . . . . 1 . . 1 . . . 2 . . 2 . . . . . . . 1 2 Programmer 35 | . . . . . . . . . 5 . . 1 . . . . 10 . 13 . . 1 2 . 1 2 Combat Programmer 2 | . . . . . . . . . . . . . . . . . . . . . . . . . . 2 Best Kill Streak 9 | 2 9 . . . 1 4 4 9 9 3 . 2 . 4 . 4 7 2 3 2 . 3 2 1 1 2 Combat Bots Only 9 | . 4 . . . 1 4 3 9 4 3 . 2 . 4 . 4 4 2 2 2 . 3 1 1 1 2 Max Kills in Single Turn 4 | 1 1 . . . 1 4 1 1 3 2 . 2 . 2 . 1 4 1 1 1 . 1 1 1 1 1 Gunslinging . | . . . . . . . . . . . . . . . . . . . . . . . . . . . Exploded 4 | . . . . . . 4 . . 1 2 . 2 . 2 . 1 1 . . . . . . . . . Melee 1 | . 1 . . . . . . . . . . . . . . . . . 1 1 . 1 . 1 . 1 Uniques/NPCs Destroyed . | . . . . . . . . . . . . . . . . . . . . . . . . . . . Combat | -11 -10 -10 -10 -9 -8 -8 -8 -8 -7 -7 -7 -7 -6 -6 -6 -6 -5 -5 -4 -4 -3 -3 -2 -2 -1 -1 -------- Run | Scr Mat Min Exi Min Mat Gar Mat Gar Fac Gar Fac Gar Fac Gar Fac Gar Fac Gar Fac Gar Res Gar Res Gar Acc Com Damage Taken 19971 | . 413 . . . 108 190 668 298 488 401 . 643 4 818 . 443 2158 694 1971 1158 163 506 1239 466 803 6339 Core 2839 | . 66 . . . 29 29 20 8 27 46 . 104 . 65 . 70 168 20 255 67 . 22 153 72 52 1566 Absorbed by Shields 449 | . . . . . . . . 66 326 . . 12 2 . . . . . 43 . . . . . . . Reduced by Siege Mode 291 | . . . . . . . . . . . . . . . . . 87 40 140 24 . . . . . . Core Remaining (%) 83 | 100 . . . 73 . . . 84 . . . 74 . . . 84 . 81 . 72 . 98 . 84 . . Volleys Fired 824 | 7 22 . . . 20 14 91 56 85 33 . 40 . 62 . 50 69 51 42 27 11 20 37 33 15 39 Largest 5 | 2 2 . . . 2 2 2 2 3 3 . 3 . 3 . 3 3 3 3 2 2 3 5 4 4 4 Hottest 180 | 60 60 . . . 78 78 78 50 75 75 . 75 . 83 . 84 84 125 79 58 63 88 161 146 144 180 Shots Fired 1630 | 10 43 . . . 34 27 180 111 234 77 . 66 . 97 . 57 172 107 76 28 12 26 86 50 41 96 Gun 1280 | 10 43 . . . . . 178 111 225 71 . 44 . 63 . 18 156 92 57 5 2 9 64 26 35 71 Cannon 60 | . . . . . 34 19 2 . . . . . . . . . . . . . . . . . . 5 Launcher 38 | . . . . . . 8 . . 3 6 . 8 . 3 . 6 . . . . . . . . . 4 Special 252 | . . . . . . . . . 6 . . 14 . 31 . 33 16 15 19 23 10 17 22 24 6 16 Kinetic 1311 | 7 22 . . . 34 19 180 111 225 71 . 44 . 63 . 18 156 87 57 5 2 9 64 26 35 76 Thermal 29 | 3 21 . . . . . . . . . . . . . . . . 5 . . . . . . . . Explosive 12 | . . . . . . 8 . . . . . . . . . . . . . . . . . . . 4 Electromagnetic 26 | . . . . . . . . . 3 6 . 8 . 3 . 6 . . . . . . . . . . Robot Hit Streak 40 | 3 10 . . . 6 5 14 26 7 13 . 18 . 9 . 13 32 22 27 33 40 9 19 15 7 9 Robot Miss Streak 11 | 2 2 . . . 2 2 5 5 7 2 . 4 . 3 . 11 11 6 4 2 1 2 5 2 6 3 Penetration Max 2 | . . . . . . . . . . . . . . 2 . . 1 . . . 1 1 1 . 1 1 Secondary Targets 16 | . . . . . . . . 2 6 . . . . 1 . 1 3 . 1 . . . 1 . . 1 Max Gunslinging Chain 1 | . . . . . . . . 1 1 . . . . 1 . 1 1 . 1 . . . 1 . . 1 Shots Hit Robots 1193 | 7 66 . . . 17 13 110 59 116 44 . 31 . 69 . 37 151 81 90 37 11 35 58 39 28 94 Core Hits 663 | 4 19 . . . 5 16 47 18 69 27 . 11 . 33 . 24 167 80 53 7 1 12 17 7 11 35 Critical Hits 21 | . . . . . 1 . 1 1 1 1 . . . 2 . . . . 1 . . 3 2 . 1 7 Critical Kills 6 | . . . . . . . . . 1 1 . . . 1 . . . . . . . 2 . . . 1 Critical Parts Destroyed 11 | . . . . . 1 . 1 1 . . . . . . . . . . 1 . . 1 1 . 1 4 Melee Attacks 194 | . 55 . . . 4 . 1 . . . . . . . . . . . 37 28 2 27 1 13 2 24 Impact 59 | . 55 . . . 4 . . . . . . . . . . . . . . . . . . . . . Slashing 1 | . . . . . . . 1 . . . . . . . . . . . . . . . . . . . Piercing 134 | . . . . . . . . . . . . . . . . . . . 37 28 2 27 1 13 2 24 Sneak Attacks 15 | . 9 . . . . . . . . . . . . . . . . . 2 . . 1 1 1 1 . Combat Hostiles 5 | . 3 . . . . . . . . . . . . . . . . . . . . 1 . 1 . . Follow-up Attacks 10 | . 7 . . . . . . . . . . . . . . . . . 2 1 . . . . . . Damage Inflicted 28104 | 62 1317 . . . 405 794 1929 1034 2260 1024 . 627 . 986 . 477 4015 1346 2436 539 109 1375 1445 622 1048 4254 Guns 17278 | 62 283 . . . . . 1876 1034 2067 658 . 365 . 832 . 233 3130 1346 1164 40 72 218 1260 493 704 1441 Cannons 761 | . . . . . 405 236 46 . . . . . . . . . . . . . . . . . . 74 Explosions 3162 | . . . . . . 558 . . 193 366 . 262 . 154 . 244 881 . . . . . . . 197 307 Melee 6730 | . 1034 . . . . . . . . . . . . . . . . . 1197 499 37 1131 154 129 147 2402 Ramming 173 | . . . . . . . 7 . . . . . . . . . 4 . 75 . . 26 31 . . 30 Kinetic 17810 | 29 106 . . . 405 236 1922 1034 2067 658 . 365 . 832 . 233 3130 1327 1164 40 72 218 1260 493 704 1515 Thermal 1102 | 33 177 . . . . . . . . 83 . . . . . 28 762 19 . . . . . . . . Explosive 1181 | . . . . . . 558 . . . . . . . . . . 119 . . . . . . . 197 307 Electromagnetic 1108 | . . . . . . . . . 193 283 . 262 . 154 . 216 . . . . . . . . . . Impact 1034 | . 1034 . . . . . . . . . . . . . . . . . . . . . . . . . Slashing . | . . . . . . . . . . . . . . . . . . . . . . . . . . . Piercing 5696 | . . . . . . . . . . . . . . . . . . . 1197 499 37 1131 154 129 147 2402 Highest Corruption 26 | . 1 1 1 1 . . . . 1 2 2 2 4 4 4 4 8 7 16 16 . 1 . . 1 26 Average Corruption 5 | . 1 1 1 1 . . . . 1 1 2 2 4 4 4 4 4 3 7 16 . 1 . . 1 6 Corruption Purged 8 | . . . . . . . . . . . . . . . . . 3 5 . . . . . . . . Effects 290 | . 1 1 . 1 . . . . 4 5 . 8 1 26 2 18 40 26 48 82 . 2 . . 1 24 Message Errors 77 | . . 1 . . . . . . 3 2 . 3 1 5 . 6 7 13 16 17 . . . . . 3 Matter Fused 55 | . . . . . . . . . . . . . . 8 . 6 5 2 7 21 . . . . . 6 Heat Flow Errors 23 | . . . . . . . . . . 2 . 1 . 3 1 . 6 2 2 6 . . . . . . Energy Discharges 39 | . . . . . . . . . 1 1 . 1 . 2 1 4 6 3 5 10 . 2 . . . 3 Parts Rejected 3 | . . . . . . . . . . . . . . . . . . . 1 1 . . . . . 1 Data Loss (minor) 24 | . . . . 1 . . . . . . . 1 . 3 . 1 2 3 3 7 . . . . . 3 Data Loss (major) 4 | . . . . . . . . . . . . . . . . . 1 1 1 1 . . . . . . Misfires 3 | . . . . . . . . . . . . . . . . . 1 . 2 . . . . . . . Alerts 1 | . . . . . . . . . . . . . . . . . . . . 1 . . . . . . Misdirections 18 | . . . . . . . . . . . . . . . . . . . 4 11 . . . . . 3 Targeting Errors 37 | . 1 . . . . . . . . . . 2 . 5 . 1 9 2 6 7 . . . . . 4 Weapon Failures 6 | . . . . . . . . . . . . . . . . . 3 . 1 . . . . . 1 1 Overload Shots . | . . . . . . . . . . . . . . . . . . . . . . . . . . . Overflow Damage 756 | . 150 . . . 3 5 . . . 10 . 7 . . . . 32 . 54 . . 66 . . . 429 Projectiles 3 | . . . . . 3 . . . . . . . . . . . . . . . . . . . . . Explosions 80 | . . . . . . 5 . . . 10 . 7 . . . . 32 . 26 . . . . . . . Melee 673 | . 150 . . . . . . . . . . . . . . . . . 28 . . 66 . . . 429 Knockbacks 10 | . 4 . . . 3 2 . . . . . . . . . . . . . . . . . . . 1 Impact 4 | . 4 . . . . . . . . . . . . . . . . . . . . . . . . . Kinetic 6 | . . . . . 3 2 . . . . . . . . . . . . . . . . . . . 1 Secondary . | . . . . . . . . . . . . . . . . . . . . . . . . . . . Self-Inflicted Damage 342 | . . . . . . . 3 . 55 10 . . . 16 . . 172 . 86 . . . . . . . Shots 10 | . . . . . . . . . 2 3 . . . 1 . . 3 . 1 . . . . . . . Rammed 15 | . . . . . . . 1 . . . . . . . . . 1 . 7 . . . 3 . . 3 Targets Rammed 18 | . . . . . . . 1 . . . . . . . . . 1 . 9 . . 1 3 . . 3 Kicked . | . . . . . . . . . . . . . . . . . . . . . . . . . . . Crushed 3 | . . . . . . . . . . . . . . . . . . . 2 . . 1 . . . . Highest Temperature 517 | 20 70 . . . 191 249 474 163 517 215 . 238 . 225 153 14 254 330 142 277 34 137 390 201 64 133 Average Temperature 69 | 15 27 . . . 54 87 52 55 131 57 . 60 . 46 79 6 44 75 29 82 12 52 116 47 20 44 Received Heat Transfer 2189 | . 120 . . . 54 108 234 51 87 33 . 143 . 21 . 90 252 270 54 210 18 78 111 9 39 207 Effects 19 | . . . . . . 1 3 . 11 . . . . . . . 1 1 . 1 . . 1 . . . Shutdowns 4 | . . . . . . . 1 . 2 . . . . . . . . . . . . . 1 . . . Energy Bleed 4 | . . . . . . 1 . . 2 . . . . . . . 1 . . . . . . . . . Interference 5 | . . . . . . . 2 . 2 . . . . . . . . . . 1 . . . . . . Matter Decay 1 | . . . . . . . . . 1 . . . . . . . . . . . . . . . . . Damage (minor) 2 | . . . . . . . . . 1 . . . . . . . . 1 . . . . . . . . Damage (major) 3 | . . . . . . . . . 3 . . . . . . . . . . . . . . . . . Siege Activations 20 | . . . . . . . . . . . . . . . . . 6 4 7 2 . . . . . 1 Total Turns 332 | . . . . . . . . . . . . . . . . . 134 46 128 17 . . . . . 7 Longest Duration 56 | . . . . . . . . . . . . . . . . . 56 20 34 9 . . . . . 7 Robots Corrupted . | . . . . . . . . . . . . . . . . . . . . . . . . . . . Combat Hostiles . | . . . . . . . . . . . . . . . . . . . . . . . . . . . Parts Fried 6 | . 6 . . . . . . . . . . . . . . . . . . . . . . . . . Impact Corruptions 10 | . 10 . . . . . . . . . . . . . . . . . . . . . . . . . Robots Melted . | . . . . . . . . . . . . . . . . . . . . . . . . . . . Combat Hostiles . | . . . . . . . . . . . . . . . . . . . . . . . . . . . Parts Melted 5 | . . . . . . . . . . . . . . 1 . . . 2 . . . . . . 2 . Heat Transferred 1204 | 75 375 . . . . . . . . 100 . . . . . 37 600 17 . . . . . . . . Parts Sabotaged 2 | . . . . . . . . . . . . . . . . . . . . . . 2 . . . . Parts Stolen . | . . . . . . . . . . . . . . . . . . . . . . . . . . . Parts Stripped . | . . . . . . . . . . . . . . . . . . . . . . . . . . . Power Chain Reactions 8 | . . . . . . . . . 5 1 . 1 . . . 1 . . . . . . . . . . Missiles Intercepted 17 | . . . . . . . . . . . . . . . . . . . . . . . . . . 17 Alert | -11 -10 -10 -10 -9 -8 -8 -8 -8 -7 -7 -7 -7 -6 -6 -6 -6 -5 -5 -4 -4 -3 -3 -2 -2 -1 -1 ------- Run | Scr Mat Min Exi Min Mat Gar Mat Gar Fac Gar Fac Gar Fac Gar Fac Gar Fac Gar Fac Gar Res Gar Res Gar Acc Com Peak Influence 841 | 10 281 108 . . 137 457 782 631 472 504 264 446 260 305 152 185 365 481 290 494 286 436 587 724 841 607 Initial 537 | . 6 108 . . . 74 222 379 331 123 264 184 233 182 143 106 96 255 252 20 277 195 245 327 433 537 Average 290 | 6 140 108 . . 40 281 456 540 262 336 264 278 227 256 149 142 177 381 96 297 183 338 312 592 614 445 Maximum Alert Level 3 | . 1 . . . . 2 3 2 2 2 1 2 1 1 . . 1 2 1 2 1 2 2 3 3 2 Low Security (%) 32 | 100 71 100 . 100 100 29 2 . 35 12 . 11 . 12 100 100 53 . 80 21 40 6 . . . 6 Level 1 40 | . 28 . . . . 58 35 16 50 45 100 78 100 87 . . 46 52 19 47 59 70 86 1 . 16 Level 2 24 | . . . . . . 11 54 83 13 41 . 10 . . . . . 47 . 31 . 23 13 79 60 76 Level 3 2 | . . . . . . . 6 . . . . . . . . . . . . . . . . 18 39 . Level 4 . | . . . . . . . . . . . . . . . . . . . . . . . . . . . Level 5 . | . . . . . . . . . . . . . . . . . . . . . . . . . . . High Security . | . . . . . . . . . . . . . . . . . . . . . . . . . . . Max Security . | . . . . . . . . . . . . . . . . . . . . . . . . . . . Squads Dispatched 50 | . 4 . . . 2 . 3 . 10 . . . 1 . . . 7 . 8 . 4 . 5 . 3 3 Investigation 13 | . 4 . . . 1 . . . 4 . . . 1 . . . . . 1 . 1 . 1 . . . Extermination 21 | . . . . . . . . . 5 . . . . . . . 4 . 5 . 1 . 2 . 2 2 Reinforcement 12 | . . . . . 1 . 3 . 1 . . . . . . . 1 . 1 . 2 . 1 . 1 1 Assault . | . . . . . . . . . . . . . . . . . . . . . . . . . . . Garrison 4 | . . . . . . . . . . . . . . . . . 2 . 1 . . . 1 . . . Intercept . | . . . . . . . . . . . . . . . . . . . . . . . . . . . Construction Impeded 3 | . . . . . . . . . 1 . . . . . . . 1 . . . . . . . 1 . Haulers Reinforced 2 | . . . . . . . . . . . . . . . . . . . 1 . 1 . . . . . Stealth | -11 -10 -10 -10 -9 -8 -8 -8 -8 -7 -7 -7 -7 -6 -6 -6 -6 -5 -5 -4 -4 -3 -3 -2 -2 -1 -1 --------- Run | Scr Mat Min Exi Min Mat Gar Mat Gar Fac Gar Fac Gar Fac Gar Fac Gar Fac Gar Fac Gar Res Gar Res Gar Acc Com Distress Signals 26 | . 2 . . . 1 . 3 1 1 . . . . . . . 1 . 5 . 2 . 5 . 4 1 Communications Jammed . | . . . . . . . . . . . . . . . . . . . . . . . . . . . Distress Signals . | . . . . . . . . . . . . . . . . . . . . . . . . . . . Times Spotted 562 | . 23 . . . 10 10 45 15 36 17 . 35 1 24 1 35 44 23 32 29 9 29 38 42 28 36 Peak Tracking Total 11 | . 5 . . . 2 4 5 5 5 4 . 6 1 4 1 11 6 5 6 8 3 10 5 9 8 7 Tactical Retreats 39 | . 1 . . . 5 . 6 1 1 . . 11 . 1 . 2 1 1 2 6 . . . . . 1 Traps | -11 -10 -10 -10 -9 -8 -8 -8 -8 -7 -7 -7 -7 -6 -6 -6 -6 -5 -5 -4 -4 -3 -3 -2 -2 -1 -1 ------- Run | Scr Mat Min Exi Min Mat Gar Mat Gar Fac Gar Fac Gar Fac Gar Fac Gar Fac Gar Fac Gar Res Gar Res Gar Acc Com Traps Triggered 35 | . 1 . . . . . 1 2 2 3 . 5 1 5 . 7 1 . . 2 . . . 4 . 1 Indirectly 8 | . . . . . . . . . 1 2 . 1 . 1 . 3 . . . . . . . . . . Trap Hack Attempts . | . . . . . . . . . . . . . . . . . . . . . . . . . . . Triggered . | . . . . . . . . . . . . . . . . . . . . . . . . . . . Disarmed . | . . . . . . . . . . . . . . . . . . . . . . . . . . . Reprogrammed . | . . . . . . . . . . . . . . . . . . . . . . . . . . . Reused . | . . . . . . . . . . . . . . . . . . . . . . . . . . . Traps Extracted . | . . . . . . . . . . . . . . . . . . . . . . . . . . . Installed . | . . . . . . . . . . . . . . . . . . . . . . . . . . . Triggered 4 | . . . . . . . . . . . . 4 . . . . . . . . . . . . . . Machines | -11 -10 -10 -10 -9 -8 -8 -8 -8 -7 -7 -7 -7 -6 -6 -6 -6 -5 -5 -4 -4 -3 -3 -2 -2 -1 -1 ---------- Run | Scr Mat Min Exi Min Mat Gar Mat Gar Fac Gar Fac Gar Fac Gar Fac Gar Fac Gar Fac Gar Res Gar Res Gar Acc Com Machines Disabled 58 | . . . . . . 1 1 . 3 1 . 4 . 3 . 4 11 4 6 5 1 3 2 4 4 1 Max in Single Turn 4 | . . . . . . 1 1 . 1 1 . 1 . 1 . 1 4 1 4 1 . 1 1 1 1 1 Garrison Relay 29 | . . . . . . 1 . . . 1 . 4 . 3 . 4 . 4 . 4 . 4 . 4 . . Machines Sabotaged . | . . . . . . . . . . . . . . . . . . . . . . . . . . . Garrisons Compromised . | . . . . . . . . . . . . . . . . . . . . . . . . . . . Overloaded Fab Kills 2 | . . . . . . . . . 2 . . . . . . . . . . . . . . . . . Fab Network Shutdowns . | . . . . . . . . . . . . . . . . . . . . . . . . . . . Hacking | -11 -10 -10 -10 -9 -8 -8 -8 -8 -7 -7 -7 -7 -6 -6 -6 -6 -5 -5 -4 -4 -3 -3 -2 -2 -1 -1 --------- Run | Scr Mat Min Exi Min Mat Gar Mat Gar Fac Gar Fac Gar Fac Gar Fac Gar Fac Gar Fac Gar Res Gar Res Gar Acc Com Machines Accessed 77 | . 6 1 2 . 5 . 11 . 18 . 1 . 2 . 1 . 7 . 6 . 3 . 5 . 6 3 Terminals 43 | . 4 . . . 3 . 7 . 12 . . . 1 . . . 3 . 3 . 2 . 3 . 4 1 Fabricators 5 | . . . . . . . . . 2 . . . . . . . 1 . 1 . . . . . 1 . Repair Stations 8 | . . . . . . . 1 . 1 . . . . . . . 1 . 1 . . . 1 . 1 2 Recycling Units 3 | . 2 . . . 1 . . . . . . . . . . . . . . . . . . . . . Scanalyzers 5 | . . . . . . . 2 . 2 . . . . . . . 1 . . . . . . . . . Garrison Access 10 | . . . . . 1 . 1 . 1 . 1 . 1 . 1 . 1 . 1 . 1 . 1 . . . Total Hacks 204 | . 17 1 2 . 8 . 34 . 56 . 2 . 5 . 2 . 18 . 17 . 10 . 11 . 16 5 Successful 107 | . 10 1 2 . 3 . 18 . 30 . 2 . 3 . 2 . 8 . 9 . 7 . 4 . 7 1 Failed 96 | . 6 . . . 5 . 16 . 26 . . . 2 . . . 10 . 8 . 3 . 7 . 9 4 Catastrophic 18 | . 1 . . . 3 . 1 . 5 . . . . . . . 1 . 1 . 1 . 2 . 1 2 Database Lockouts 1 | . 1 . . . . . . . . . . . . . . . . . . . . . . . . . Manual 81 | . 9 . 1 . 6 . 16 . 18 . . . 3 . . . 2 . 8 . 6 . 6 . 4 2 Terminals 127 | . 15 . . . 5 . 23 . 38 . . . 2 . . . 7 . 10 . 6 . 8 . 12 1 Fabricators 11 | . . . . . . . . . 5 . . . . . . . 3 . 2 . . . . . 1 . Repair Stations 20 | . . . . . . . 2 . 6 . . . . . . . 2 . 2 . . . 1 . 3 4 Recycling Units 3 | . 2 . . . 1 . . . . . . . . . . . . . . . . . . . . . Scanalyzers 14 | . . . . . . . 7 . 4 . . . . . . . 3 . . . . . . . . . Garrison Access 26 | . . . . . 2 . 2 . 3 . 2 . 3 . 2 . 3 . 3 . 4 . 2 . . . Terminal Hacks 39 | . 5 1 2 . . . 7 . 13 . . . . . . . 2 . 3 . 1 . 1 . 4 . Record 6 | . . . 1 . . . . . 2 . . . . . . . 2 . . . . . . . 1 . Robot Analysis 3 | . 3 . . . . . . . . . . . . . . . . . . . . . . . . . Prototype ID Bank 1 | . . . . . . . 1 . . . . . . . . . . . . . . . . . . . Open Door 4 | . . 1 . . . . . . . . . . . . . . . . . . . . . . 3 . Level Access Points 1 | . . . . . . . . . . . . . . . . . . . 1 . . . . . . . Branch Access Points 2 | . 1 . . . . . 1 . . . . . . . . . . . . . . . . . . . Terminal Index 1 | . . . . . . . . . 1 . . . . . . . . . . . . . . . . . Repair Station Index 1 | . . . . . . . . . . . . . . . . . . . 1 . . . . . . . Scanalyzer Index 1 | . . . . . . . . . 1 . . . . . . . . . . . . . . . . . Unreport Threat 4 | . . . . . . . 1 . 2 . . . . . . . . . . . 1 . . . . . Locate Traps 5 | . . . . . . . . . 4 . . . . . . . . . 1 . . . . . . . Recall Reinforcements 1 | . . . . . . . 1 . . . . . . . . . . . . . . . . . . . Zone Layout 8 | . 1 . . . . . 3 . 3 . . . . . . . . . . . . . 1 . . . EX-Prototype ID Bank 1 | . . . 1 . . . . . . . . . . . . . . . . . . . . . . . Fabricator Hacks 3 | . . . . . . . . . . . . . . . . . 1 . 2 . . . . . . . Load Schematic 1 | . . . . . . . . . . . . . . . . . . . 1 . . . . . . . Build 2 | . . . . . . . . . . . . . . . . . 1 . 1 . . . . . . . Repair Station Hacks 6 | . . . . . . . 1 . 3 . . . . . . . . . . . . . . . 1 1 Scan Component 5 | . . . . . . . 1 . 2 . . . . . . . . . . . . . . . 1 1 Repair 1 | . . . . . . . . . 1 . . . . . . . . . . . . . . . . . Recycling Unit Hacks . | . . . . . . . . . . . . . . . . . . . . . . . . . . . Scanalyzer 9 | . . . . . . . 5 . 2 . . . . . . . 2 . . . . . . . . . Insert Component 5 | . . . . . . . 3 . 1 . . . . . . . 1 . . . . . . . . . Analyze 4 | . . . . . . . 2 . 1 . . . . . . . 1 . . . . . . . . . Garrison Access Hacks 19 | . . . . . 2 . 2 . 2 . 2 . 2 . 2 . 2 . 2 . 2 . 1 . . . Unlock Access 10 | . . . . . 1 . 1 . 1 . 1 . 1 . 1 . 1 . 1 . 1 . 1 . . . Coupler Status 9 | . . . . . 1 . 1 . 1 . 1 . 1 . 1 . 1 . 1 . 1 . . . . . Unauthorized Hacks 31 | . 5 . . . 1 . 3 . 10 . . . 1 . . . 1 . 2 . 4 . 2 . 2 . Terminals 22 | . 3 . . . . . 3 . 8 . . . . . . . 1 . 1 . 2 . 2 . 2 . Track 3 | . 1 . . . . . . . 2 . . . . . . . . . . . . . . . . . Botnet 14 | . 1 . . . . . 1 . 5 . . . . . . . 1 . 1 . 1 . 2 . 2 . Disrupt 2 | . 1 . . . . . 1 . . . . . . . . . . . . . . . . . . . Operators 3 | . . . . . . . 1 . 1 . . . . . . . . . . . 1 . . . . . Fabricators 1 | . . . . . . . . . 1 . . . . . . . . . . . . . . . . . Overload 1 | . . . . . . . . . 1 . . . . . . . . . . . . . . . . . Repair Stations . | . . . . . . . . . . . . . . . . . . . . . . . . . . . Recycling Units 3 | . 2 . . . 1 . . . . . . . . . . . . . . . . . . . . . Tunnel 3 | . 2 . . . 1 . . . . . . . . . . . . . . . . . . . . . Scanalyzers . | . . . . . . . . . . . . . . . . . . . . . . . . . . . Garrison Access 5 | . . . . . . . . . 1 . . . 1 . . . . . 1 . 2 . . . . . Intercept 1 | . . . . . . . . . . . . . . . . . . . . . 1 . . . . . Eject 4 | . . . . . . . . . 1 . . . 1 . . . . . 1 . 1 . . . . . Data Cores Recovered 1 | . . . . . . . . . 1 . . . . . . . . . . . . . . . . . Used 1 | . . . . . . . . . 1 . . . . . . . . . . . . . . . . . Hacking Detections 66 | . 4 . . . 4 . 10 . 18 . . . 1 . . . 7 . 6 . 2 . 5 . 6 3 Full Trace Events 6 | . 3 . . . . . 1 . 1 . . . . . . . . . . . . . 1 . . . Feedback Events . | . . . . . . . . . . . . . . . . . . . . . . . . . . . Feedback Blocked . | . . . . . . . . . . . . . . . . . . . . . . . . . . . Robot Schematics Acquired . | . . . . . . . . . . . . . . . . . . . . . . . . . . . Robots Built . | . . . . . . . . . . . . . . . . . . . . . . . . . . . Matter . | . . . . . . . . . . . . . . . . . . . . . . . . . . . Time . | . . . . . . . . . . . . . . . . . . . . . . . . . . . Total Robot Build Rating . | . . . . . . . . . . . . . . . . . . . . . . . . . . . Part Schematics Acquired 4 | . . . . . . . 2 . 1 . . . . . . . 1 . . . . . . . . . Parts Built 4 | . . . . . . . . . . . . . . . . . 2 . 2 . . . . . . . Matter 556 | . . . . . . . . . . . . . . . . . 278 . 278 . . . . . . . Time 138 | . . . . . . . . . . . . . . . . . 69 . 69 . . . . . . . Total Part Build Rating 36 | . . . . . . . . . . . . . . . . . 18 . 18 . . . . . . . Parts Repaired 1 | . . . . . . . . . 1 . . . . . . . . . . . . . . . . . Time 19 | . . . . . . . . . 19 . . . . . . . . . . . . . . . . . Parts Recycled . | . . . . . . . . . . . . . . . . . . . . . . . . . . . Recycled Matter . | . . . . . . . . . . . . . . . . . . . . . . . . . . . Retrieved Matter . | . . . . . . . . . . . . . . . . . . . . . . . . . . . Retrieved Components . | . . . . . . . . . . . . . . . . . . . . . . . . . . . Parts Scanalyzed 4 | . . . . . . . 2 . 1 . . . . . . . 1 . . . . . . . . . Part Schematics Acquired 4 | . . . . . . . 2 . 1 . . . . . . . 1 . . . . . . . . . Parts Damaged 1 | . . . . . . . . . . . . . . . . . 1 . . . . . . . . . Bothacking | -11 -10 -10 -10 -9 -8 -8 -8 -8 -7 -7 -7 -7 -6 -6 -6 -6 -5 -5 -4 -4 -3 -3 -2 -2 -1 -1 ------------ Run | Scr Mat Min Exi Min Mat Gar Mat Gar Fac Gar Fac Gar Fac Gar Fac Gar Fac Gar Fac Gar Res Gar Res Gar Acc Com Used RIF Installer 10 | . . . . . . 1 . 1 . 1 . 1 . 1 . 1 . 1 . 1 . 1 . 1 . . Hotswap 1 | . . . . . . . . . . . . . . . . 1 . . . . . . . . . . Command Fork 1 | . . . . . . . . . . . . . . . . . . . . 1 . . . . . . Threat Obfuscator 2 | . . . . . . . . 1 . 1 . . . . . . . . . . . . . . . . Robot Detection 1 | . . . . . . . . . . . . . . . . . . . . . . 1 . . . . Watcher Feeds 1 | . . . . . . . . . . . . . . . . . . . . . . . . 1 . . Autooverride 1 | . . . . . . . . . . . . . . 1 . . . . . . . . . . . . Autoassimilate 2 | . . . . . . . . . . . . 1 . . . . . 1 . . . . . . . . Robots Hacked 199 | . . . . . . . . . 3 . . 8 . 13 . 20 13 9 13 16 9 15 20 34 13 13 Non-combat 24 | . . . . . . . . . 2 . . . . . . . 4 . 6 . 4 . 6 . 1 1 Combat 175 | . . . . . . . . . 1 . . 8 . 13 . 20 9 9 7 16 5 15 14 34 12 12 Autooverrided 17 | . . . . . . . . . . . . . . . . 1 . 1 1 2 . 1 . 8 2 1 Autoassimilated 35 | . . . . . . . . . . . . . . 1 . 2 1 . 2 1 2 5 2 11 6 2 Robot Hacks Applied 157 | . . . . . . . . . 4 . . 8 . 13 . 17 12 8 11 14 7 9 18 21 5 10 parse_system 11 | . . . . . . . . . 1 . . . . 1 . . . . 1 . . . 1 4 2 1 find_chute 1 | . . . . . . . . . . . . . . . . . 1 . . . . . . . . . map_walls 2 | . . . . . . . . . . . . . . . . . . . 1 . 1 . . . . . drop_inventory 8 | . . . . . . . . . 1 . . . . . . . . . 2 . 2 . 3 . . . ignore_parts 2 | . . . . . . . . . . . . . . . . . 1 . . . . . 1 . . . purge_threat 1 | . . . . . . . . . . . . . . . . . . . . . . . 1 . . . map_route 7 | . . . . . . . . . 1 . . . . . . . 1 . 2 . . . 1 . 1 1 scatter_targeting 3 | . . . . . . . . . . . . . . . . . . . . 2 . . . 1 . . disrupt_area 1 | . . . . . . . . . . . . . . . . . 1 . . . . . . . . . spike_heat 2 | . . . . . . . . . . . . . . . . . . 1 . 1 . . . . . . overload_power 1 | . . . . . . . . . . . . . . . . . . . . 1 . . . . . . reboot_system 2 | . . . . . . . . . . . . . . . . . . . . . . . 1 1 . . go_dormant 1 | . . . . . . . . . . . . . . . . . . . . . . 1 . . . . overwrite_iff 25 | . . . . . . . . . . . . 3 . 5 . 4 1 3 . 6 . 1 . 2 . . streamctrl_low 2 | . . . . . . . . . . . . . . . . . 1 . 1 . . . . . . . formatsys_high 88 | . . . . . . . . . 1 . . 5 . 7 . 13 6 4 4 4 4 7 10 13 2 8 Relay Couplers Released 135 | . . . . . . 5 . . 4 5 . 15 4 12 . 18 . 17 4 16 3 17 . 15 . . Ejected 15 | . . . . . . . . . 4 . . . 4 . . . . . 4 . 3 . . . . . Machine Destruction 120 | . . . . . . 5 . . . 5 . 15 . 12 . 18 . 17 . 16 . 17 . 15 . . Attached 58 | . . . . . . . . . 2 . . 4 . 5 . 6 3 5 4 3 2 6 2 8 2 6 Robots Rewired 16 | . . . . . . . . . 1 3 . . . 6 . . . . . 3 . . . 3 . . Allies Hacked 10 | . . . . . . . . . . . . . . . . . 2 . . . 1 2 2 . 2 1 Hacks Repelled . | . . . . . . . . . . . . . . . . . . . . . . . . . . . Allies | -11 -10 -10 -10 -9 -8 -8 -8 -8 -7 -7 -7 -7 -6 -6 -6 -6 -5 -5 -4 -4 -3 -3 -2 -2 -1 -1 -------- Run | Scr Mat Min Exi Min Mat Gar Mat Gar Fac Gar Fac Gar Fac Gar Fac Gar Fac Gar Fac Gar Res Gar Res Gar Acc Com Total Allies 197 | . . . . . . . . . 2 3 . 8 . 19 . 20 9 8 8 15 6 17 18 40 12 12 Largest Group 29 | . . . . . . . . . 1 3 1 3 1 6 3 7 6 4 2 7 11 15 11 23 29 17 Highest-Rated Group 1639 | . . . . . . . . . 37 63 21 64 32 224 120 202 135 128 105 362 597 833 589 1335 1639 944 Highest-Rated Ally 147 | . . . . . . . . . 37 21 21 32 32 41 41 47 49 41 56 115 64 115 69 147 69 69 Total Orders 14 | . . . . . . . . . . . 1 2 3 1 . . 6 . 1 . . . . . . . STAY 5 | . . . . . . . . . . . 1 . . 1 . . 3 . . . . . . . . . GUARD 2 | . . . . . . . . . . . . 2 . . . . . . . . . . . . . . AID 4 | . . . . . . . . . . . . . . . . . 3 . 1 . . . . . . . EXPLORE 3 | . . . . . . . . . . . . . 3 . . . . . . . . . . . . . Ally Attacks 1080 | . . . . . . . . . 1 22 . 18 4 57 . 71 50 37 27 69 56 78 157 181 168 84 Total Damage 37057 | . . . . . . . . . 21 538 . 437 85 1010 . 1174 1169 780 1295 2973 2370 3112 6065 5909 7317 2802 Kills 202 | . . . . . . . . . . 8 . 4 1 7 . 11 9 6 7 16 12 15 33 22 34 17 Allies Corrupted 2 | . . . . . . . . . . . . . . . . . . . . . . . 1 1 . . Allies Melted . | . . . . . . . . . . . . . . . . . . . . . . . . . . . Intel | -11 -10 -10 -10 -9 -8 -8 -8 -8 -7 -7 -7 -7 -6 -6 -6 -6 -5 -5 -4 -4 -3 -3 -2 -2 -1 -1 ------- Run | Scr Mat Min Exi Min Mat Gar Mat Gar Fac Gar Fac Gar Fac Gar Fac Gar Fac Gar Fac Gar Res Gar Res Gar Acc Com Robot Analysis Total 3 | . 3 . . . . . . . . . . . . . . . . . . . . . . . . . Derelict Logs Recovered . | . . . . . . . . . . . . . . . . . . . . . . . . . . . Drone Launches 3 | . . . . . . . . . . . . . 3 . . . . . . . . . . . . . Drone Recoveries 1 | . . . . . . . . . . . . . 1 . . . . . . . . . . . . . Exploration | -11 -10 -10 -10 -9 -8 -8 -8 -8 -7 -7 -7 -7 -6 -6 -6 -6 -5 -5 -4 -4 -3 -3 -2 -2 -1 -1 ------------- Run | Scr Mat Min Exi Min Mat Gar Mat Gar Fac Gar Fac Gar Fac Gar Fac Gar Fac Gar Fac Gar Res Gar Res Gar Acc Com Turns Passed 23304 | 31 665 203 308 99 1080 380 2003 457 2313 660 37 760 393 1341 77 960 1443 1167 2031 1565 759 1092 756 1358 521 845 Spaces Moved 14518 | 13 346 165 280 102 485 352 1377 335 1681 581 39 638 351 908 44 618 710 640 983 891 347 648 444 799 311 430 Core 59 | . . . . . . . . . . . . . . . . . . . . . 18 . . . . 41 Treads 5963 | . 13 . . . . . . . . . . . . . . . 546 640 983 891 329 648 444 799 311 359 Legs 7849 | 13 14 . 147 102 485 352 1377 335 1681 581 39 638 351 908 44 618 164 . . . . . . . . . Wheels 617 | . 319 165 133 . . . . . . . . . . . . . . . . . . . . . . . Hover . | . . . . . . . . . . . . . . . . . . . . . . . . . . . Flight 30 | . . . . . . . . . . . . . . . . . . . . . . . . . . 30 Fastest Speed 40 | 120 110 120 90 90 45 45 45 45 45 90 90 90 90 90 170 110 112 145 145 145 145 145 145 145 145 40 Average Speed 118 | 120 120 120 103 90 89 89 89 89 90 90 90 90 90 112 170 128 137 145 150 145 184 145 145 145 146 138 Slowest Speed 900 | 120 180 120 120 90 90 90 90 90 130 90 90 90 90 170 170 170 145 145 180 145 900 145 145 145 152 350 Overloaded Moves 20 | . . . . . 2 1 2 4 11 . . . . . . . . . . . . . . . . . Propulsion Burnouts . | . . . . . . . . . . . . . . . . . . . . . . . . . . . Robots Hopped . | . . . . . . . . . . . . . . . . . . . . . . . . . . . Cave-ins Triggered . | . . . . . . . . . . . . . . . . . . . . . . . . . . . Exploration Rate (%) 45 | 2 63 45 61 37 42 57 78 41 51 59 2 76 10 84 2 76 20 81 24 80 8 96 18 86 9 19 Regions Visited 26 Branch Regions 4 Pre-discovered Areas 4 | . 2 . 1 . 1 . . . . . . . . . . . . . . . . . . . . . Known Exits Taken 11 | . 1 . . . 1 . 1 . 1 . 1 . 1 . 1 . 1 . 1 . 1 . 1 . . . Unknown Exits Taken 5 | 1 . 1 1 1 . . . . . . . . . . . . . . . . . . . . 1 . Scrap Searched 2 | . . 1 . 1 . . . . . . . . . . . . . . . . . . . . . . Spaces Dug 15 | . 3 . . . 2 . 1 . . . . . . . . . . . 4 4 . . . 1 . . Terrain Destroyed 219 | . 3 . . . 4 12 1 . . 3 . 2 . . . 3 93 . 37 4 . . . 7 22 28 Melee 14 | . 3 . . . 2 . 1 . . . . . . . . . . . 4 4 . . . . . . Projectile 23 | . . . . . 2 . . . . . . . . . . . . . . . . . . 7 4 10 AOE 182 | . . . . . . 12 . . . 3 . 2 . . . 3 93 . 33 . . . . . 18 18 Terrain Rammed . | . . . . . . . . . . . . . . . . . . . . . . . . . . . Walls Destroyed . | . . . . . . . . . . . . . . . . . . . . . . . . . . . Machines Disabled . | . . . . . . . . . . . . . . . . . . . . . . . . . . . Actions | -11 -10 -10 -10 -9 -8 -8 -8 -8 -7 -7 -7 -7 -6 -6 -6 -6 -5 -5 -4 -4 -3 -3 -2 -2 -1 -1 --------- Run | Scr Mat Min Exi Min Mat Gar Mat Gar Fac Gar Fac Gar Fac Gar Fac Gar Fac Gar Fac Gar Res Gar Res Gar Acc Com Total 19307 | 19 482 171 299 109 1091 387 2049 425 2398 682 40 784 430 1166 46 745 1052 799 1433 1116 462 737 509 949 348 579 Wait 2828 | . 40 3 . 8 534 14 495 24 556 44 . 52 58 107 2 16 212 75 318 113 78 4 2 42 8 23 Move 14497 | 12 345 164 279 101 485 351 1377 334 1680 580 39 637 350 907 44 617 709 639 983 890 346 647 443 798 310 430 Hop . | . . . . . . . . . . . . . . . . . . . . . . . . . . . Pick Up 235 | . 12 2 13 . 16 2 28 . 16 4 . 13 5 13 . 12 16 7 16 16 7 12 . 13 2 10 Fast Attach 86 | . 2 . 3 . 6 . 7 . 7 . . 1 4 2 . 4 7 1 4 9 3 4 3 4 2 13 Attach 101 | . 3 . . . 2 . 3 1 3 1 . 4 3 6 . 4 10 5 13 3 4 3 4 5 4 20 Detach 20 | . 1 . . . 3 . 5 . 1 . . . 1 . . . 2 1 3 . . . . . . 3 Swap 154 | . 8 . . . 8 4 7 . 14 7 1 14 2 17 . 11 13 15 2 2 3 7 10 4 2 3 Drop 206 | . 3 2 4 . 13 2 34 . 23 2 . 3 7 12 . 11 13 5 11 14 8 11 6 8 3 11 Fire 824 | 7 22 . . . 20 14 91 56 85 33 . 40 . 62 . 50 69 51 42 27 11 20 37 33 15 39 Melee 180 | . 46 . . . 4 . 1 . . . . . . . . . . . 33 27 2 27 1 13 2 24 Ram 1 | . . . . . . . . . . . . . . . . . . . . . . . . . . 1 Kick 1 | . . . . . . . 1 . . . . . . . . . . . . . . . . . . . Crush 15 | . . . . . . . . . . . . . . . . . 1 . 8 . . 1 3 . . 2 Escape Stasis 75 | . . . . . . . . 10 . 2 . 20 . 23 . 20 . . . . . . . . . . Rewire 84 | . . . . . . . . . 13 9 . . . 17 . . . . . 15 . 1 . 29 . . Trap . | . . . . . . . . . . . . . . . . . . . . . . . . . . . Miscellaneous . | . . . . . . . . . . . . . . . . . . . . . . . . . . . Route ------- -11/Scrapyard -10/Materials (discovered 4 exits: [*Mat x2] / *Min x2) -10/Mines (discovered 2 exits: [*Mat] / *Exi) -10/Exiles -9/Mines -8/Materials (discovered 3 exits: *Fac x2 / Gar) -8/Garrison (discovered 3 exits: *Mat x3) -8/Materials (discovered 3 exits: *Fac x2 / Gar) -8/Garrison -7/Factory (discovered 4 exits: *Fac x3 / Gar) -7/Garrison (discovered 3 exits: *Fac x3) -7/Factory -7/Garrison (discovered 3 exits: *Fac x3) -6/Factory (discovered 2 exits: *Low / Gar) -6/Garrison (discovered 3 exits: *Fac x3) -6/Factory -6/Garrison (discovered 3 exits: *Fac x3) -5/Factory (discovered 2 exits: *Upp / Gar) -5/Garrison (discovered 3 exits: *Fac x3) -4/Factory (discovered 6 exits: Res x4 / [Upp] / Gar) -4/Garrison (discovered 3 exits: *Res x3) -3/Research (discovered 2 exits: *Tes / Gar) -3/Garrison (discovered 3 exits: *Res x3) -2/Research -2/Garrison (discovered 3 exits: *Acc x3) -1/Access -1/Command History --------- Turn | Location | Event 17 | -11/Scrapyard | Discovered new exit (range 3) 32 | -11/Scrapyard | Entered Materials 306 | -10/Materials | Discovered new exit (range 12) 314 | -10/Materials | Build established: Mutant 315 | -10/Materials | Identified exit to Mines 369 | -10/Materials | Discovered new exit (range 9) 374 | -10/Materials | Central database locked down 697 | -10/Materials | Entered Mines 702 | -10/Mines | Met a Derelict bent on vengeance 759 | -10/Mines | Discovered new exit (range 6) 814 | -10/Mines | Deemed a non-threat by the Exiles lab entrance 814 | -10/Mines | Discovered new exit (range 5) 857 | -10/Mines | Met a Derelict who couldn't figure out how to use a Trap Extractor 900 | -10/Mines | Entered Exiles 930 | -10/Exiles | Met 8R-AWN 950 | -10/Exiles | Met EX-HEX 983 | -10/Exiles | Met EX-BIN 998 | -10/Exiles | Aligned with FarCom system 999 | -10/Exiles | Given EX-Vault access code 1026 | -10/Exiles | Opened EX-Vault 1043 | -10/Exiles | Found Lightpack 2.0 1069 | -10/Exiles | Found Potential Leg 1072 | -10/Exiles | Found Potential Leg 1083 | -10/Exiles | Found Chronowheel 1101 | -10/Exiles | Warned to stay clear of 0b10 Research branches 1127 | -10/Exiles | Met EX-DEC 1131 | -10/Exiles | Learned location of Zion (-6) 1158 | -10/Exiles | Discovered new exit (range 12) 1208 | -10/Exiles | Stole three prototypes: Potential Leg, Lightpack 2.0, Chronowheel 1208 | -10/Exiles | Entered Mines 1209 | -9/Mines | Assembled infested the area 1296 | -9/Mines | Discovered new exit (range 14) 1307 | -9/Mines | Entered Materials 1307 | -8/Materials | Evolved 4 slots: Propulsion x1, Utility x3 1350 | -8/Materials | Build established: Hauler-Mutant 1982 | -8/Materials | Discovered new exit (range 10) 2304 | -8/Materials | Discovered new exit (range 9) 2387 | -8/Materials | Identified exit to Garrison 2387 | -8/Materials | Entered Garrison 2478 | -8/Garrison | Discovered new exit (range 15) 2528 | -8/Garrison | Triggered checkpoint 2533 | -8/Garrison | Triggered checkpoint 2568 | -8/Garrison | Discovered new exit (range 8) 2579 | -8/Garrison | Installed Relay Interface Framework 2619 | -8/Garrison | Triggered checkpoint 2684 | -8/Garrison | Discovered new exit (range 14) 2702 | -8/Garrison | Triggered checkpoint 2734 | -8/Garrison | Garrison Relay disabled 2767 | -8/Garrison | Entered Materials 2991 | -8/Materials | Discovered new exit (range 5) 4343 | -8/Materials | Discovered new exit (range 15) 4770 | -8/Materials | Identified exit to Garrison 4770 | -8/Materials | Entered Garrison 4827 | -8/Garrison | Triggered checkpoint 4932 | -8/Garrison | Destroyed 9 combat bots 4962 | -8/Garrison | Discovered new exit (range 11) 4976 | -8/Garrison | Expanded RIF knowledge: Threat Obfuscation 5018 | -8/Garrison | Triggered checkpoint 5186 | -8/Garrison | Triggered checkpoint 5227 | -8/Garrison | Entered Factory 5227 | -7/Factory | Evolved 2 slots: Utility x1, Weapon x1 5229 | -7/Factory | FarCom data flow suspended 5350 | -7/Factory | Discovered new exit (range 7) 5461 | -7/Factory | Repaired Deuterium Engine 6205 | -7/Factory | Discovered new exit (range 16) 6504 | -7/Factory | Build established: Hauler-Skirmisher 6710 | -7/Factory | Identified exit to Factory 7400 | -7/Factory | Discovered exit to Factory (range 16) 7504 | -7/Factory | Identified exit to Garrison 7540 | -7/Factory | Entered Garrison 7610 | -7/Garrison | Triggered checkpoint 7656 | -7/Garrison | Discovered new exit (range 10) 7670 | -7/Garrison | Triggered checkpoint 7701 | -7/Garrison | Triggered checkpoint 7861 | -7/Garrison | Triggered checkpoint 7898 | -7/Garrison | Triggered checkpoint 7916 | -7/Garrison | Triggered checkpoint 7919 | -7/Garrison | Discovered new exit (range 10) 7966 | -7/Garrison | Build established: Hauler-Tank 8045 | -7/Garrison | Triggered checkpoint 8081 | -7/Garrison | Garrison Relay disabled 8171 | -7/Garrison | Discovered new exit (range 13) 8181 | -7/Garrison | Identified exit to Factory 8186 | -7/Garrison | Expanded RIF knowledge: Threat Obfuscation 8200 | -7/Garrison | Entered Factory 8200 | -7/Factory | Accompanied by 1 ally 8237 | -7/Factory | Identified exit to Garrison 8237 | -7/Factory | Entered Garrison 8256 | -7/Garrison | Triggered checkpoint 8289 | -7/Garrison | Garrison Relay disabled 8346 | -7/Garrison | Triggered checkpoint 8428 | -7/Garrison | Triggered checkpoint 8463 | -7/Garrison | Discovered exit to Factory (range 14) 8549 | -7/Garrison | Build established: Bothacker-Mutant 8553 | -7/Garrison | Discovered exit to Factory (range 10) 8620 | -7/Garrison | Discovered exit to Factory (range 8) 8631 | -7/Garrison | Expanded RIF knowledge: Autoassimilate 8645 | -7/Garrison | Triggered checkpoint 8665 | -7/Garrison | Garrison Relay disabled 8752 | -7/Garrison | Triggered checkpoint 8769 | -7/Garrison | Garrison Relay disabled 8783 | -7/Garrison | Lost 3 parts (1p1u1w) 8844 | -7/Garrison | Triggered checkpoint 8979 | -7/Garrison | Build established: Botlord-Mutant 8997 | -7/Garrison | Entered Factory 8997 | -6/Factory | Accompanied by 1 ally 8997 | -6/Factory | Evolved 2 slots: Propulsion x1, Utility x1 9092 | -6/Factory | Discovered new exit (range 11) 9260 | -6/Factory | Identified exit to Lower Caves 9375 | -6/Factory | Identified exit to Garrison 9390 | -6/Factory | Entered Garrison 9390 | -6/Garrison | Accompanied by 1 ally 9423 | -6/Garrison | Triggered checkpoint 9524 | -6/Garrison | Triggered checkpoint 9530 | -6/Garrison | Triggered checkpoint 9596 | -6/Garrison | Triggered checkpoint 9613 | -6/Garrison | Garrison Relay disabled 9682 | -6/Garrison | Triggered checkpoint 9686 | -6/Garrison | Discovered new exit (range 12) 9716 | -6/Garrison | Triggered checkpoint 9729 | -6/Garrison | Garrison Relay disabled 9869 | -6/Garrison | Discovered new exit (range 15) 9881 | -6/Garrison | Identified exit to Factory 9887 | -6/Garrison | Expanded RIF knowledge: Autooverride 10254 | -6/Garrison | Triggered checkpoint 10284 | -6/Garrison | Garrison Relay disabled 10354 | -6/Garrison | Discovered exit to Factory (range 14) 10731 | -6/Garrison | Entered Factory 10731 | -6/Factory | Accompanied by 3 allies 10806 | -6/Factory | Identified exit to Garrison 10808 | -6/Factory | Entered Garrison 10808 | -6/Garrison | Accompanied by 3 allies 10834 | -6/Garrison | Triggered checkpoint 10930 | -6/Garrison | Triggered checkpoint 10936 | -6/Garrison | Triggered checkpoint 10967 | -6/Garrison | Triggered checkpoint 11072 | -6/Garrison | Garrison Relay disabled 11232 | -6/Garrison | Triggered checkpoint 11255 | -6/Garrison | Garrison Relay disabled 11341 | -6/Garrison | Discovered new exit (range 14) 11439 | -6/Garrison | Discovered new exit (range 13) 11480 | -6/Garrison | Triggered checkpoint 11509 | -6/Garrison | Garrison Relay disabled 11648 | -6/Garrison | Discovered new exit (range 15) 11662 | -6/Garrison | Identified exit to Factory 11669 | -6/Garrison | Expanded RIF knowledge: Hotswap 11694 | -6/Garrison | Triggered checkpoint 11718 | -6/Garrison | Garrison Relay disabled 11768 | -6/Garrison | Entered Factory 11768 | -5/Factory | Accompanied by 5 allies 11768 | -5/Factory | Evolved 2 slots: Utility x2 11927 | -5/Factory | Discovered new exit (range 12) 11946 | -5/Factory | Identified exit to Upper Caves 12035 | -5/Factory | Fabricated Biometal Heavy Treads (x2) 12381 | -5/Factory | Spotted B-75 Beast 13035 | -5/Factory | Garrison activated, responded to threat 13203 | -5/Factory | Identified exit to Garrison 13211 | -5/Factory | Entered Garrison 13230 | -5/Garrison | Triggered checkpoint 13298 | -5/Garrison | Garrison Relay disabled 13418 | -5/Garrison | Triggered checkpoint 13547 | -5/Garrison | Discovered new exit (range 15) 13593 | -5/Garrison | Triggered checkpoint 13624 | -5/Garrison | Garrison Relay disabled 13688 | -5/Garrison | Triggered checkpoint 13772 | -5/Garrison | Triggered checkpoint 13829 | -5/Garrison | Garrison Relay disabled 14020 | -5/Garrison | Discovered new exit (range 14) 14040 | -5/Garrison | Identified exit to Factory 14049 | -5/Garrison | Expanded RIF knowledge: Autoassimilate 14098 | -5/Garrison | Build established: Botlord-Tank 14173 | -5/Garrison | Discovered exit to Factory (range 15) 14229 | -5/Garrison | Triggered checkpoint 14277 | -5/Garrison | Garrison Relay disabled 14378 | -5/Garrison | Entered Factory 14378 | -4/Factory | Evolved 2 slots: Weapon x2 14958 | -4/Factory | Identified exit to Research 15046 | -4/Factory | Build established: Botlord-Mutant 15375 | -4/Factory | Fabricated Biometal Heavy Treads? 15488 | -4/Factory | Lost 3 parts (2u1w) 15827 | -4/Factory | System corruption reached 10% 16055 | -4/Factory | Discovered new exit (range 76) 16387 | -4/Factory | Identified exit to Garrison 16409 | -4/Factory | Entered Garrison 16437 | -4/Garrison | Spotted B-86 Titan 16558 | -4/Garrison | Triggered checkpoint 16567 | -4/Garrison | Garrison Relay disabled 16694 | -4/Garrison | Triggered checkpoint 16712 | -4/Garrison | Triggered checkpoint 16943 | -4/Garrison | Triggered checkpoint 16978 | -4/Garrison | Discovered exit to Research (range 10) 17000 | -4/Garrison | Expanded RIF knowledge: Command Fork 17066 | -4/Garrison | Triggered checkpoint 17088 | -4/Garrison | Garrison Relay disabled 17342 | -4/Garrison | Garrison Relay disabled 17435 | -4/Garrison | Discovered exit to Research (range 7) 17457 | -4/Garrison | Spotted B-86 Titan 17479 | -4/Garrison | Allies destroyed B-86 Titan 17640 | -4/Garrison | Triggered checkpoint 17699 | -4/Garrison | Garrison Relay disabled 17827 | -4/Garrison | Discovered exit to Research (range 10) 17974 | -4/Garrison | Entered Research 17974 | -3/Research | Accompanied by 6 allies 17974 | -3/Research | Evolved 2 slots: Power x1, Utility x1 18294 | -3/Research | Found Prototype Device 18310 | -3/Research | Discovered new exit (range 14) 18451 | -3/Research | Identified exit to Testing 18536 | -3/Research | Found Enh. Force Lance 18537 | -3/Research | Identified Adv. Kinecellerator 18545 | -3/Research | Found Fusion Bomb Launcher 18715 | -3/Research | Identified exit to Garrison 18733 | -3/Research | Entered Garrison 18733 | -3/Garrison | Accompanied by 10 allies 18780 | -3/Garrison | Triggered checkpoint 18806 | -3/Garrison | Garrison Relay disabled 18863 | -3/Garrison | Spotted B-86 Titan 18869 | -3/Garrison | Assimilated Titan 8a with formatsys_high 18875 | -3/Garrison | Triggered checkpoint 18916 | -3/Garrison | Triggered checkpoint 18964 | -3/Garrison | Triggered checkpoint 18978 | -3/Garrison | Discovered new exit (range 14) 18995 | -3/Garrison | Identified exit to Research 19004 | -3/Garrison | Expanded RIF knowledge: Robot Detection 19101 | -3/Garrison | Garrison Relay disabled 19224 | -3/Garrison | Triggered checkpoint 19290 | -3/Garrison | Triggered checkpoint 19317 | -3/Garrison | Garrison Relay disabled 19386 | -3/Garrison | Discovered exit to Research (range 10) 19499 | -3/Garrison | Discovered exit to Research (range 12) 19552 | -3/Garrison | Triggered checkpoint 19571 | -3/Garrison | Garrison Relay disabled 19825 | -3/Garrison | Entered Research 19825 | -2/Research | Accompanied by 7 allies 19825 | -2/Research | Evolved 2 slots: Utility x2 20482 | -2/Research | Spotted B-90 Cyclops 20489 | -2/Research | Allies destroyed B-90 Cyclops 20512 | -2/Research | Garrison activated, responded to threat 20539 | -2/Research | Identified exit to Garrison 20581 | -2/Research | Entered Garrison 20581 | -2/Garrison | Accompanied by 8 allies 20616 | -2/Garrison | Triggered checkpoint 20650 | -2/Garrison | Garrison Relay disabled 20692 | -2/Garrison | Triggered checkpoint 20697 | -2/Garrison | Spotted B-90 Cyclops 20715 | -2/Garrison | Allies destroyed B-90 Cyclops 20718 | -2/Garrison | Triggered checkpoint 20724 | -2/Garrison | Triggered checkpoint 20754 | -2/Garrison | Triggered checkpoint 20826 | -2/Garrison | Discovered new exit (range 15) 20862 | -2/Garrison | Triggered checkpoint 20880 | -2/Garrison | Garrison Relay disabled 21071 | -2/Garrison | Found Antimissile System 21120 | -2/Garrison | Triggered checkpoint 21144 | -2/Garrison | Garrison Relay disabled 21197 | -2/Garrison | Discovered new exit (range 10) 21217 | -2/Garrison | Expanded RIF knowledge: Patrol Navigation 21489 | -2/Garrison | Discovered new exit (range 5) 21612 | -2/Garrison | Triggered checkpoint 21622 | -2/Garrison | Triggered checkpoint 21648 | -2/Garrison | Triggered checkpoint 21815 | -2/Garrison | Garrison Relay disabled 21939 | -2/Garrison | Entered Access 21939 | -1/Access | Accompanied by 23 allies 21939 | -1/Access | Evolved 2 slots: Utility x2 22342 | -1/Access | Lost 3 parts (1p1u1w) 22437 | -1/Access | Discovered new exit (range 8) 22460 | -1/Access | Entered Command 22460 | -1/Command | Accompanied by 12 allies 23106 | -1/Command | Spotted M Guard 23106 | -1/Command | Spotted M Guard 23106 | -1/Command | Spotted Combat Programmer 23112 | -1/Command | Spotted Combat Programmer 23116 | -1/Command | System corruption reached 10% 23137 | -1/Command | Destroyed Combat Programmer 23215 | -1/Command | Lost 16 parts (2p1n7u6w) 23224 | -1/Command | Destroyed Combat Programmer 23248 | -1/Command | Core integrity fell below 50% 23265 | -1/Command | Spotted B-99 Colossus 23275 | -1/Command | Core integrity fell below 20% 23305 | -1/Command | Destroyed by H-88 Terminator with KE Penetrator Last Messages --------------- 23266_ K-01 Serf collects debris. 23271_ Slug penetrates Wall. 23271_ Relay Coupler [Swarmer] destroyed. 23272_ Slug penetrates Wall. 23272_ Impulse Thruster destroyed. 23272_ Slug penetrates Wall. 23274_ Penetrated by Slug. 23274_ Slug penetrates K-01 Serf. 23278_ Slug penetrates Wall. 23283_ Quantum Router disabled. 23283_ Acquired Quantum Reactor. 23284_ System corrupted: Matter fused (-6). 23288_ Slug penetrates Wall. 23299_ Slug penetrates Quantum Router. 23299_ Quantum Reactor destroyed. 23299_ Slug penetrates Quantum Router. 23299_ Acquired Recoil Nullifier. 23300_ Slug penetrates Wall. 23302_ Acquired Quantum Reactor. 23303_ Recoil Nullifier destroyed. Map ----- +----------------------------------------------------+ | ???????????# ##+#######"#### # ## !! | | ???????????# % "" # ## !% | | ???????????# T" # ## | | ???????????# ################ # ## | | ???????????# #??????????????###### ## | | ?????????###+##########??????????# ## | | ?????????# #??????????# ## | | ?????????# #??????????# ## | | ?????????# #??????????#!%## | | ?????????# #?????????## ## | | ?????????# ########### ####/######## | | ?????????# "" + #?? | | ?????????#""" # #?? | | ?????????#"R= # ####/######## | | ?????????#""" """" # #### | | ?????????#""" """" + #??# | | ?????????# """" ########### #??# | | ?????????# """" #?????????# #??# | | ?????????##########%###?????????# #??# | | ??????????????????# #???????????# #??# """ | | ??????????????????#%#??########## #??# """" | | ??????????????????#=#??# # #??# """T | | ??????????????????#!#??# p h/ #??# """ | | ??????????????#####+#### ph # #??# | | ??????????????# !%! ## " # #??# | | ??????????????# ! ## @""" # #??# | | ??????????????# ""## """ # #####/########## | | ??????????????# ! "## "" # # #?? | | ??????????????# ""## # # #?? | | ??????????????# T## # # #?? | | ??????????????# * ""#########+# # #?? | | ###???????????# % ""## # #?? | | ###??????#### ""## # #?? | | ##?##### ! ## + #?? | | =#?#!=!# # ## # #?? | | ###]%[ ##### + #?? | | [ !* Y ###### #?? | | [ / #????# #?? | | #????# ! #?? | | !% #????####+###+#####?? | | ! Y #???????? #?# #?????? | | # ### ########+############### #?????? | | #?#=*= #?# # # #?????? | | ## #?## # #?# ! # # #?????? | | #??# # ###?# | # # #?????? | | ###??### ### ##### "" # # ####### | | ##??????##??# ## """" # # """"" | | ###???????????# # "" + "" " | | ??????????????# # | | ??????????????# = # | +----------------------------------------------------+ Best States ------------- Heat Dissipation 52 Energy Generation 49 Energy Capacity 600 Matter Stores 300 Matter Capacity 300 Sight Range 16 Robot Scan Range 20 Terrain Scan Density 10 ECM Strength 2 Power Amplification 30 Armor Coverage 1200 Resistance: KI 30 Propulsion Shielding 66 Weapon Shielding 66 Point Defense Rating 240 Evasion (%) 62 Targeting Accuracy 8 Recoil Reduction 6 Kinecelleration 30 Salvage Targeting 3 Offensive Hacking 10 Defensive Hacking 14 Relay Coupler Types 271 Relay Coupler Value 9 Item Schematics ----------------- Imp. Propulsion Shielding | -8/Materials | Scanalyzed Enh. Autogun | -8/Materials | Scanalyzed Lrn. Sensor Array | -7/Factory | Scanalyzed Biometal Heavy Treads | -5/Factory | Scanalyzed Robot Schematics ------------------ None Fabricated ------------ Biometal Heavy Treads | x2 | -5/Factory | Preloaded Biometal Heavy Treads | x2 | -4/Factory Alien Tech Used ----------------- None Achievements -------------- Beloved Denied? No Explosion For You Pwned Ride The Lightning Challenges ------------ None Game ------ Seed FlightFactoryTendrils Manual? 0 Play Time 04:56:34 Cumulative 23.2 hours Start 2021.07.02 @ 08:58:21 End 2021.07.02 @ 14:06:05 Sessions 1 Manual Loads 0 Difficulty Rogue Special Mode None Game No. 31 Rogue 31 Adventurer 0 Explorer 0 Win Type - Total 0 Types 0/0/0/0/0/0/0/0/0 Lore% 40 Gallery% 46 Achievement% 46 Wizard Run 0 Options --------- ASCII 0 Keyboard 0 Movement Numpad Keybinds 0 Fullscreen 1 Font 18/SmallcapsGlow Map View 76x50 Tactical HUD 1 Map Filters NONE Filters NONE Steam 1 RUN: 1d6fb98d-ce2c-4169-bb61-c63c9214952f